bitfinex/quotes_SOLUSD_20241222
["timestamp","ask_amount","ask_price","bid_price","bid_amount"]
[1734881125499,20.0,181.54,181.44,18.38828896]
[1734881125662,20.0,181.54,181.46,18.38828896]
[1734881126062,20.0,181.54,181.45,18.38828896]
[1734881126267,20.0,181.54,181.47,18.38828896]
[1734881126785,20.0,181.54,181.48,18.38828896]
[1734881126990,1.6323,181.56,181.49,18.38828896]
[1734881127159,1.6323,181.56,181.5,18.38828896]
[1734881127869,1.5757,181.61,181.55,18.38828896]
[1734881128095,7.4227,181.66,181.57,18.38828896]
[1734881128471,7.4227,181.66,181.59,18.38828896]
[1734881128775,7.4227,181.7,181.61,18.38828896]
[1734881128982,0.12549,181.69,181.61,18.38828896]
[1734881129504,7.4227,181.7,181.62,18.38828896]
[1734881129875,7.4227,181.7,181.63,18.38828896]
[1734881129876,1.5757,181.7,181.63,18.38828896]
[1734881130615,1.5757,181.7,181.62,18.38828896]
[1734881130992,0.12549,181.69,181.6,18.38828896]
[1734881131202,0.12549,181.69,181.57,13.7682]
[1734881131393,0.12549,181.69,181.56,23.776884]
[1734881131582,0.12549,181.69,181.58,18.38828896]
[1734881131786,0.12549,181.69,181.59,18.38828896]
[1734881132017,43.902374,181.69,181.58,18.38828896]
[1734881132376,43.902374,181.69,181.55,6.4452]
[1734881132377,52.158174,181.69,181.56,18.38828896]
[1734881132903,20.0,181.64,181.56,18.38828896]
[1734881133103,20.0,181.64,181.55,18.38828896]
[1734881133308,20.0,181.64,181.5,96.53593016]
[1734881133309,0.12549,181.63,181.53,18.38828896]
[1734881133492,23.902374,181.63,181.52,18.38828896]
[1734881133691,20.0,181.6,181.52,18.38828896]
[1734881133887,5.847,181.64,181.56,18.38828896]
[1734881134195,20.0,181.66,181.59,18.38828896]
[1734881135711,20.0,181.66,181.54,14.59644101]
[1734881135921,5.847,181.69,181.61,18.38828896]
[1734881136233,0.12549,181.68,181.6,18.38828896]
[1734881136915,0.12549,181.68,181.59,18.38828896]
[1734881137121,0.12549,181.68,181.55,18.38828896]
[1734881137293,23.902374,181.65,181.55,18.38828896]
[1734881138193,0.12549,181.65,181.56,18.38828896]
[1734881138390,20.0,181.65,181.58,18.38828896]
[1734881139091,20.0,181.65,181.56,18.38828896]
[1734881139287,0.12549,181.64,181.55,18.38828896]
[1734881139593,20.0,181.62,181.53,18.38828896]
[1734881140717,20.0,181.62,181.54,18.38828896]
[1734881140920,20.0,181.62,181.55,18.38828896]
[1734881141210,20.0,181.66,181.56,18.38828896]
[1734881141592,0.12549,181.65,181.55,18.38828896]
[1734881142015,0.12549,181.65,181.56,18.38828896]
[1734881143413,0.12549,181.65,181.55,18.38828896]
[1734881144505,0.12549,181.65,181.56,18.38828896]
[1734881145017,0.12549,181.65,181.52,14.5979983]
[1734881145018,0.12549,181.65,181.57,18.38828896]
[1734881146302,20.0,181.66,181.58,18.38828896]
[1734881147792,1.5757,181.7,181.63,18.38828896]
[1734881148120,1.5757,181.7,181.62,18.38828896]
[1734881148517,1.5757,181.7,181.63,18.38828896]
[1734881149220,0.6638967,181.74,181.59,38.36944647]
[1734881149221,2.1787967,181.74,181.65,18.38828896]
[1734881149519,2.1787967,181.74,181.61,13.7653]
[1734881149520,2.1787967,181.74,181.67,18.38828896]
[1734881149690,0.6638967,181.74,181.67,18.38828896]
[1734881150017,0.6638967,181.74,181.69,18.38828896]
[1734881150224,0.6638967,181.74,181.7,18.38828896]
[1734881150518,0.6638967,181.74,181.72,18.38828896]
[1734881151215,0.6638967,181.74,181.73,18.38828896]
[1734881151532,0.6638967,181.74,181.71,18.38828896]
[1734881152036,0.6638967,181.74,181.72,18.38828896]
[1734881152334,0.6638967,181.74,181.71,18.38828896]
[1734881152725,0.6638967,181.74,181.73,18.38828896]
[1734881154351,0.6638967,181.74,181.72,18.38828896]
[1734881155742,0.6638967,181.74,181.71,18.38828896]
[1734881156429,0.6638967,181.74,181.72,18.38828896]
[1734881157749,0.6638967,181.74,181.67,8.1361]
[1734881158024,0.6638967,181.74,181.68,18.38828896]
[1734881158232,0.6638967,181.74,181.73,18.38828896]
[1734881158438,0.6638967,181.74,181.73,19.21328819]
[1734881158932,0.6638967,181.74,181.73,18.38828896]
[1734881159148,0.6638967,181.74,181.73,42.16517296]
[1734881159526,0.6638967,181.74,181.73,55.92177296]
[1734881159939,20.0,181.85,181.73,55.92177296]
[1734881160146,20.0,181.85,181.76,18.38828896]
[1734881160322,20.0,181.85,181.77,18.38828896]
[1734881161541,0.12549,181.84,181.74,18.38828896]
[1734881161749,0.12549,181.84,181.73,18.38828896]
[1734881161750,20.12549,181.84,181.73,18.38828896]
[1734881162057,0.12549,181.82,181.73,18.38828896]
[1734881164252,0.12549,181.79,181.72,18.38828896]
[1734881164431,0.12549,181.79,181.7,18.38828896]
[1734881164630,0.12549,181.79,181.69,18.38828896]
[1734881165141,0.12549,181.79,181.7,18.38828896]
[1734881165630,0.12549,181.79,181.71,18.38828896]
[1734881166178,21.5925,181.8,181.72,18.38828896]
[1734881166453,1.5925,181.84,181.75,18.38828896]
[1734881166660,1.5925,181.84,181.76,18.38828896]
[1734881167943,20.12549,181.83,181.74,18.38828896]
[1734881168442,20.12549,181.83,181.75,18.38828896]
[1734881168632,20.12549,181.83,181.69,83.4594]
[1734881168833,20.12549,181.83,181.72,18.38828896]
[1734881169061,20.12549,181.83,181.73,18.38828896]
[1734881170368,20.12549,181.83,181.75,18.38828896]
[1734881170530,20.12549,181.83,181.76,18.38828896]
[1734881170973,1.5925,181.84,181.77,18.38828896]
[1734881171270,1.5925,181.84,181.78,18.38828896]
[1734881172266,1.5925,181.84,181.79,18.38828896]
[1734881172468,1.5925,181.84,181.78,18.38828896]
[1734881175367,1.5925,181.84,181.77,18.38828896]
[1734881175667,1.5925,181.84,181.78,18.38828896]
[1734881176356,7.4395,181.88,181.79,18.38828896]
[1734881176748,0.12549,181.87,181.79,18.38828896]
[1734881176969,0.12549,181.87,181.78,18.38828896]
[1734881177572,0.12549,181.87,181.74,14.58092681]
[1734881177573,23.902374,181.87,181.77,18.38828896]
[1734881179351,20.12549,181.83,181.7,20.0]
[1734881179666,20.12549,181.83,181.73,18.38828896]
[1734881179876,0.12549,181.83,181.73,18.38828896]
[1734881180050,0.12549,181.82,181.74,18.38828896]
[1734881180458,0.12549,181.82,181.75,18.38828896]
[1734881181477,20.0,181.83,181.76,18.38828896]
[1734881182287,8.2481,181.86,181.77,18.38828896]
[1734881183046,0.12549,181.85,181.77,18.38828896]
[1734881183666,8.2481,181.86,181.77,18.38828896]
[1734881184568,8.2469,181.89,181.81,18.38828896]
[1734881187192,2.25474507,181.91,181.81,18.38828896]
[1734881188783,2.25474507,181.91,181.8,18.38828896]
[1734881188964,2.25474507,181.91,181.81,18.38828896]
[1734881190394,2.25474507,181.91,181.8,18.38828896]
[1734881190686,0.12549,181.87,181.77,18.38828896]
[1734881190988,0.12549,181.87,181.78,18.38828896]
[1734881193003,8.2465,181.9,181.8,18.38828896]
[1734881194692,8.2465,181.9,181.75,22.66359709]
[1734881194988,8.2465,181.9,181.8,18.38828896]
[1734881195155,1.5925,181.88,181.82,18.38828896]
[1734881196187,0.12549,181.91,181.82,18.38828896]
[1734881196362,20.0,181.9,181.82,18.38828896]
[1734881197262,5.97249,181.87,181.78,18.38828896]
[1734881197567,5.97249,181.87,181.75,8.084]
[1734881197568,5.847,181.87,181.8,18.38828896]
[1734881197889,1.5613,181.88,181.8,18.38828896]
[1734881198773,1.5613,181.88,181.81,18.38828896]
[1734881198969,5.847,181.91,181.81,18.38828896]
[1734881199492,0.12549,181.9,181.81,18.38828896]
[1734881200359,2.2251967,181.92,181.85,18.38828896]
[1734881200797,2.2251967,181.92,181.87,18.38828896]
[1734881201098,2.2251967,181.92,181.85,18.38828896]
[1734881201508,0.6638967,181.92,181.87,18.38828896]
[1734881203104,0.6638967,181.92,181.88,18.38828896]
[1734881203271,0.6638967,181.92,181.89,18.38828896]
[1734881203598,0.6638967,181.92,181.9,18.38828896]
[1734881203810,0.6638967,181.92,181.91,18.38828896]
[1734881208778,0.6638967,181.92,181.91,32.13128896]
[1734881210013,0.6638967,181.92,181.91,18.38828896]
[1734881212072,0.6638967,181.92,181.91,19.21249901]
[1734881215581,2.2222797,181.94,181.91,43.11487301]
[1734881215912,1.5373,182.09,181.96,20.0]
[1734881216211,1.5373,182.09,182.01,18.38828896]
[1734881216910,1.5373,182.09,182.0,18.38828896]
[1734881217279,1.5373,182.09,182.01,18.38828896]
[1734881218315,1.5373,182.09,182.02,18.38828896]
[1734881218492,0.6638967,182.1,182.06,18.38828896]
[1734881218690,0.6638967,182.1,182.08,18.38828896]
[1734881218890,0.6638967,182.1,182.0,312.0]
[1734881219085,0.6638967,182.1,182.03,18.38828896]
[1734881219400,0.6638967,182.1,182.09,18.38828896]
[1734881220589,0.6638967,182.1,182.08,18.38828896]
[1734881220784,0.6638967,182.1,182.07,18.38828896]
[1734881220991,0.6638967,182.1,182.03,18.38828896]
[1734881221221,0.6638967,182.1,182.01,6.2097]
[1734881221515,0.6638967,182.1,182.04,18.38828896]
[1734881222015,0.6638967,182.1,182.03,18.38828896]
[1734881222411,0.6638967,182.1,182.01,18.38828896]
[1734881222584,20.12549,182.09,181.99,18.38828896]
[1734881222778,20.0,182.09,181.99,18.38828896]
[1734881222979,20.0,182.09,182.01,18.38828896]
[1734881223203,0.6638967,182.1,182.05,18.38828896]
[1734881223889,0.6638967,182.1,182.03,18.38828896]
[1734881224608,0.6638967,182.1,182.02,18.38828896]
[1734881224823,0.12549,182.09,182.0,18.38828896]
[1734881224990,20.12549,182.09,182.0,18.38828896]
[1734881225320,20.12549,182.09,182.01,18.38828896]
[1734881225898,20.12549,182.09,182.0,18.38828896]
[1734881226280,20.12549,182.09,181.99,18.38828896]
[1734881226595,20.12549,182.09,182.01,18.38828896]
[1734881227832,0.12549,182.06,181.96,18.38828896]
[1734881228142,20.0,182.05,181.95,18.38828896]
[1734881228515,20.0,182.05,181.98,18.38828896]
[1734881228830,20.0,182.05,181.93,0.82419672]
[1734881228831,7.3641,182.08,182.0,18.38828896]
[1734881229921,7.3641,182.08,182.03,18.38828896]
[1734881229922,1.5171,182.08,182.03,18.38828896]
[1734881230126,0.6638967,182.1,182.05,18.38828896]
[1734881230375,0.6638967,182.1,182.07,18.38828896]
[1734881231004,0.6638967,182.1,182.08,18.38828896]
[1734881232015,0.6638967,182.1,182.09,18.38828896]
[1734881233934,1.5872,182.2,182.13,18.38828896]
[1734881234109,1.5872,182.2,182.14,18.38828896]
[1734881235222,1.5872,182.2,182.13,18.38828896]
[1734881235622,1.0872,182.2,182.13,18.38828896]
[1734881236032,8.2314,182.23,182.14,18.38828896]
[1734881236839,8.2314,182.23,182.09,0.82348232]
[1734881236840,0.12549,182.19,182.09,0.82348232]
[1734881237012,5.847,182.19,182.09,18.38828896]
[1734881237336,5.847,182.19,182.11,18.38828896]
[1734881237546,5.847,182.19,182.12,18.38828896]
[1734881238010,20.0,182.2,182.12,18.38828896]
[1734881238931,28.233,182.2,182.1,18.38828896]
[1734881239122,20.0,182.21,182.12,18.38828896]
[1734881239646,20.0,182.2,182.12,18.38828896]
[1734881241654,20.0,182.2,182.1,18.38828896]
[1734881241837,23.902374,182.19,182.07,18.38828896]
[1734881242146,0.12549,182.19,182.06,19.91498896]
[1734881242448,0.12549,182.16,182.07,18.38828896]
[1734881243038,0.12549,182.16,182.06,19.91498896]
[1734881243228,0.12549,182.19,182.06,18.38828896]
[1734881243429,0.12549,182.16,182.07,18.38828896]
[1734881243631,23.902374,182.16,182.06,18.38828896]
[1734881243830,37.984174,182.16,182.04,18.38828896]
[1734881244047,0.12549,182.14,182.03,18.38828896]
[1734881244222,23.902374,182.14,182.02,18.38828896]
[1734881244423,23.902374,182.14,182.01,24.91698896]
[1734881244847,0.12549,182.14,182.02,18.38828896]
[1734881245044,20.0,182.13,182.04,18.38828896]
[1734881245237,20.0,182.13,182.01,6.5287]
[1734881245238,20.0,182.13,182.03,18.38828896]
[1734881245550,32.138974,182.12,182.0,18.38828896]
[1734881246131,0.12549,182.08,181.98,20.01758896]
[1734881246655,20.0,182.04,181.94,26.27648296]
[1734881246956,20.0,182.04,181.95,18.38828896]
[1734881247452,20.0,182.04,181.96,18.38828896]
[1734881247747,20.0,182.03,181.95,18.38828896]
[1734881247935,20.0,182.03,181.94,18.38828896]
[1734881248136,0.12549,182.02,181.94,18.38828896]
[1734881248337,0.12549,182.02,181.93,18.38828896]
[1734881248550,0.12549,182.02,181.94,18.38828896]
[1734881248740,20.0,182.03,181.94,18.38828896]
[1734881249357,20.0,182.03,181.95,18.38828896]
[1734881250357,6.9793,182.07,181.99,18.38828896]
[1734881250528,6.9793,182.07,182.01,18.38828896]
[1734881251150,1.1323,182.07,182.02,18.38828896]
[1734881251320,5.847,182.11,182.03,18.38828896]
[1734881252931,1.1323,182.12,182.04,18.38828896]
[1734881253134,1.1323,182.12,182.05,18.38828896]
[1734881253946,5.847,182.15,182.05,18.38828896]
[1734881254661,5.847,182.15,182.06,18.38828896]
[1734881254830,1.1323,182.16,182.09,18.38828896]
[1734881256149,1.1323,182.16,182.08,18.38828896]
[1734881256361,6.9793,182.2,182.1,18.38828896]
[1734881257083,6.9793,182.2,182.07,2.45633527]
[1734881257084,6.9793,182.2,182.11,18.38828896]
[1734881257246,6.9793,182.2,182.07,2.45633527]
[1734881257247,8.2328,182.24,182.14,18.38828896]
[1734881257870,8.2328,182.24,182.13,18.38828896]
[1734881258468,8.2328,182.24,182.14,18.38828896]
[1734881258639,8.2328,182.24,182.13,18.38828896]
[1734881259860,0.12549,182.21,182.08,18.38828896]
[1734881260065,20.0,182.19,182.08,18.38828896]
[1734881260747,20.0,182.14,182.02,1.6655]
[1734881260944,0.12549,182.13,182.0,6.0313]
[1734881261147,20.0,182.14,181.98,15.4026]
[1734881261474,20.0,182.14,182.04,18.38828896]
[1734881261770,6.9793,182.17,182.08,18.38828896]
[1734881262150,6.9793,182.17,182.08,29.66250908]
[1734881262547,15.2119,182.21,182.09,29.66250908]
[1734881262747,20.0,182.18,182.09,29.66250908]
[1734881263258,15.2119,182.21,182.1,29.66250908]
[1734881264348,15.2119,182.21,182.09,29.66250908]
[1734881264545,15.2119,182.21,182.1,29.66250908]
[1734881264981,15.2119,182.21,182.11,29.66250908]
[1734881266188,6.9793,182.21,182.11,29.66250908]
[1734881266481,6.9793,182.21,182.12,29.66250908]
[1734881267051,6.9793,182.21,182.11,29.66250908]
[1734881270379,6.9793,182.21,182.12,29.66250908]
[1734881271085,6.9793,182.21,182.1,0.82334727]
[1734881271291,8.2328,182.24,182.13,29.66250908]
[1734881271590,8.2328,182.24,182.14,29.66250908]
[1734881273173,8.2328,182.24,182.13,29.66250908]
[1734881273372,0.12549,182.23,182.12,29.66250908]
[1734881273887,8.2328,182.24,182.13,29.66250908]
[1734881274056,8.2328,182.24,182.09,14.5527613]
[1734881274057,8.2328,182.24,182.14,29.66250908]
[1734881275786,8.2328,182.24,182.13,29.66250908]
[1734881276093,8.35709,182.23,182.12,29.66250908]
[1734881277276,8.2328,182.24,182.17,29.66250908]
[1734881277481,8.2301,182.26,182.17,29.66250908]
[1734881277685,28.35709,182.26,182.18,29.66250908]
[1734881277896,28.35709,182.26,182.16,29.66250908]
[1734881278382,28.35709,182.26,182.17,29.66250908]
[1734881280800,28.35709,182.26,182.12,24.60030572]
[1734881280801,0.12549,182.25,182.14,29.66250908]
[1734881281992,20.0,182.22,182.12,29.66250908]
[1734881282672,20.0,182.22,182.13,29.66250908]
[1734881284211,20.0,182.22,182.13,18.24447475]
[1734881285207,28.35709,182.23,182.12,18.24447475]
[1734881285519,20.0,182.19,182.09,18.24447475]
[1734881285696,0.12549,182.18,182.07,18.24447475]
[1734881285868,1.1323,182.17,182.07,18.24447475]
[1734881286069,1.1323,182.17,182.05,18.24447475]
[1734881286707,5.847,182.16,182.05,18.24447475]
[1734881287417,5.847,182.16,182.08,18.24447475]
[1734881287572,5.847,182.16,182.1,18.24447475]
[1734881288195,5.847,182.16,182.09,18.24447475]
[1734881288372,5.847,182.16,182.08,18.24447475]
[1734881288573,5.847,182.16,182.09,18.24447475]
[1734881288990,5.847,182.16,182.1,18.24447475]
[1734881289411,1.1323,182.17,182.11,18.24447475]
[1734881289583,1.1323,182.17,182.12,18.24447475]
[1734881289778,1.1323,182.17,182.1,18.24447475]
[1734881290182,1.1323,182.17,182.09,18.24447475]
[1734881290384,21.1323,182.17,182.08,18.24447475]
[1734881290918,21.1323,182.17,182.09,18.24447475]
[1734881291210,1.1323,182.17,182.1,18.24447475]
[1734881291991,1.1323,182.17,182.11,18.24447475]
[1734881292507,8.231,182.24,182.13,18.24447475]
[1734881292676,0.12549,182.23,182.13,18.24447475]
[1734881293020,8.231,182.24,182.13,18.24447475]
[1734881293315,8.231,182.24,182.14,18.24447475]
[1734881293478,0.12549,182.23,182.13,18.24447475]
[1734881293679,8.2318,182.22,182.12,18.24447475]
[1734881295085,8.2318,182.22,182.11,18.24447475]
[1734881295409,8.2318,182.22,182.12,18.24447475]
[1734881296621,8.2318,182.22,182.11,18.24447475]
[1734881297408,11.719701,182.21,182.13,18.24447475]
[1734881297586,11.719701,182.21,182.14,18.24447475]
[1734881297928,8.2318,182.22,182.14,18.24447475]
[1734881298092,19.951501,182.22,182.14,18.24447475]
[1734881298687,20.0,182.22,182.14,18.24447475]
[1734881299021,21.96557,182.23,182.14,18.24447475]
[1734881299184,21.96557,182.23,182.15,18.24447475]
[1734881299384,1.1323,182.26,182.17,18.24447475]
[1734881299699,1.1323,182.26,182.18,18.24447475]
[1734881300004,1.1323,182.26,182.19,18.24447475]
[1734881300205,1.1323,182.26,182.2,18.24447475]
[1734881300507,0.6638967,182.28,182.23,18.24447475]
[1734881301002,0.6638967,182.28,182.18,14.54542037]
[1734881301003,0.6638967,182.28,182.22,18.24447475]
[1734881301227,0.6638967,182.28,182.23,18.24447475]
[1734881301918,0.6638967,182.28,182.24,18.24447475]
[1734881303617,0.6638967,182.28,182.27,18.24447475]
[1734881303924,0.6638967,182.28,182.27,42.02135875]
[1734881304699,0.6638967,182.28,182.27,42.96938212]
[1734881305721,0.6638967,182.28,182.27,62.78268212]
[1734881306295,9.67e-05,182.28,182.27,62.78268212]
[1734881308239,1.1323,182.42,182.31,0.12549]
[1734881308419,5.847,182.43,182.37,18.24447475]
[1734881308615,1.7961967,182.46,182.37,18.24447475]
[1734881309323,1.7961967,182.46,182.38,18.24447475]
[1734881310000,1.7961967,182.46,182.39,18.24447475]
[1734881310199,0.6638967,182.46,182.45,18.24447475]
[1734881310635,0.6638967,182.46,182.44,18.24447475]
[1734881310842,0.6638967,182.46,182.45,18.24447475]
[1734881314317,0.6638967,182.46,182.44,18.24447475]
[1734881314636,0.6638967,182.46,182.45,18.24447475]
[1734881316041,8.217,182.55,182.45,18.24447475]
[1734881316337,8.2178,182.53,182.43,18.24447475]
[1734881317137,8.2178,182.53,182.44,18.24447475]
[1734881318337,8.2178,182.53,182.43,18.24447475]
[1734881318640,0.12549,182.52,182.43,18.24447475]
[1734881319010,23.776884,182.49,182.39,18.24447475]
[1734881319209,0.12549,182.45,182.35,18.24447475]
[1734881320501,0.12549,182.45,182.31,6.4962]
[1734881320502,0.12549,182.45,182.34,18.24447475]
[1734881320638,8.34719,182.45,182.34,18.24447475]
[1734881321237,20.0,182.42,182.34,18.24447475]
[1734881321539,20.0,182.42,182.33,18.24447475]
[1734881321925,0.12549,182.41,182.32,18.24447475]
[1734881322127,1.1323,182.4,182.31,18.24447475]
[1734881322311,1.1323,182.4,182.3,18.24447475]
[1734881322721,8.34959,182.39,182.3,18.24447475]
[1734881323526,8.34959,182.39,182.28,18.24447475]
[1734881323730,8.34959,182.39,182.26,8.1141]
[1734881323731,8.34959,182.39,182.27,18.24447475]
[1734881323926,0.12549,182.35,182.27,18.24447475]
[1734881324138,20.0,182.35,182.28,18.24447475]
[1734881324351,20.0,182.36,182.29,18.24447475]
[1734881324542,20.0,182.36,182.28,18.24447475]
[1734881324928,20.0,182.36,182.27,18.24447475]
[1734881325129,20.0,182.33,182.22,0.82280257]
[1734881325424,0.12549,182.32,182.22,18.24447475]
[1734881325815,20.0,182.29,182.21,18.24447475]
[1734881326017,20.0,182.29,182.22,18.24447475]
[1734881326744,20.0,182.29,182.21,18.24447475]
[1734881330548,20.0,182.29,182.2,18.24447475]
[1734881331427,20.0,182.28,182.19,18.24447475]
[1734881331937,9.3604,182.31,182.19,18.24447475]
[1734881332143,20.0,182.28,182.2,18.24447475]
[1734881332754,20.0,182.28,182.21,18.24447475]
[1734881332958,9.3604,182.31,182.2,18.24447475]
[1734881333160,9.3604,182.31,182.21,18.24447475]
[1734881333965,5.847,182.32,182.21,18.24447475]
[1734881334146,5.847,182.32,182.22,18.24447475]
[1734881334328,5.847,182.32,182.21,18.24447475]
[1734881334529,5.847,182.32,182.18,14.54514878]
[1734881334530,5.847,182.32,182.2,18.24447475]
[1734881334752,0.12549,182.31,182.2,18.24447475]
[1734881335526,0.12549,182.31,182.22,18.24447475]
[1734881336018,0.12549,182.31,182.18,13.7221]
[1734881336019,0.12549,182.31,182.21,18.24447475]
[1734881338247,5.847,182.32,182.21,18.24447475]
[1734881339132,5.847,182.32,182.17,2.39435144]
[1734881339133,8.35319,182.31,182.17,2.39435144]
[1734881339344,8.35319,182.31,182.18,18.24447475]
[1734881340480,0.12549,182.27,182.14,0.82299127]
[1734881340644,20.12549,182.27,182.15,18.24447475]
[1734881340964,0.12549,182.25,182.13,18.24447475]
[1734881341262,20.0,182.21,182.11,18.24447475]
[1734881341559,0.12549,182.2,182.09,18.24447475]
[1734881341733,20.0,182.17,182.08,18.24447475]
[1734881342374,23.902374,182.2,182.08,18.24447475]
[1734881342677,20.0,182.17,182.09,18.24447475]
[1734881343038,20.0,182.17,182.08,18.24447475]
[1734881343260,20.0,182.17,182.07,18.24447475]
[1734881343873,20.0,182.17,182.08,18.24447475]
[1734881345066,20.0,182.17,182.05,18.24447475]
[1734881345067,0.12549,182.16,182.05,18.24447475]
[1734881345269,20.0,182.15,182.05,18.24447475]
[1734881345859,25.847,182.15,182.04,18.24447475]
[1734881346060,0.12549,182.14,182.04,18.24447475]
[1734881346240,0.12549,182.14,182.02,18.24447475]
[1734881346575,0.12549,182.14,182.03,18.24447475]
[1734881346767,0.12549,182.14,182.04,18.24447475]
[1734881346977,8.36089,182.14,182.04,18.24447475]
[1734881347276,8.36089,182.14,182.05,18.24447475]
[1734881348373,25.847,182.15,182.05,18.24447475]
[1734881348677,20.0,182.14,182.05,18.24447475]
[1734881349056,20.0,182.14,182.01,0.6638967]
[1734881349057,20.0,182.14,182.08,18.24447475]
[1734881349253,5.847,182.15,182.08,18.24447475]
[1734881349455,1.1323,182.17,182.08,18.24447475]
[1734881350674,0.12549,182.16,182.07,18.24447475]
[1734881350878,0.12549,182.16,182.05,18.24447475]
[1734881351075,8.35999,182.16,182.04,18.24447475]
[1734881351279,20.0,182.13,182.03,18.24447475]
[1734881352075,5.847,182.11,182.02,18.24447475]
[1734881352685,20.0,182.08,182.01,0.6638967]
[1734881352978,20.0,182.07,182.01,0.6638967]
[1734881353583,0.12549,182.04,182.01,0.6638967]
[1734881353993,20.12549,182.02,182.01,0.6638967]
[1734881354156,25.97249,182.02,182.01,0.6638967]
[1734881354356,49.749374,182.02,182.01,0.6638967]
[1734881354677,25.847,182.02,182.01,0.6638967]
[1734881356563,5.847,182.02,182.01,0.6638967]
[1734881356765,5.847,182.07,182.01,0.6638967]
[1734881357658,0.12549,182.06,182.01,0.6638967]
[1734881359181,20.0,182.04,182.01,0.6638967]
[1734881359400,20.0,182.03,182.01,0.6638967]
[1734881359595,20.12549,182.02,182.01,0.6638967]
[1734881359803,43.902374,182.02,182.01,0.6638967]
[1734881360292,20.12549,182.02,182.01,0.6638967]
[1734881360984,20.0,182.02,182.01,0.6638967]
[1734881362387,10.45004472,182.06,182.01,0.6638967]
[1734881362388,0.12549,182.05,182.01,0.6638967]
[1734881362562,20.0,182.03,182.01,0.6638967]
[1734881362897,5.847,182.07,182.01,0.6638967]
[1734881363680,0.12549,182.06,182.01,0.6638967]
[1734881364263,23.902374,182.06,182.01,0.6638967]
[1734881364992,20.12549,182.02,182.01,0.6638967]
[1734881365184,20.12549,182.01,181.9,18.24447475]
[1734881365512,20.0,182.01,181.92,18.24447475]
[1734881365694,8.2394,182.05,181.92,18.24447475]
[1734881365992,20.0,182.02,181.93,18.24447475]
[1734881366482,0.89955906,182.02,181.93,18.24447475]
[1734881366690,20.12549,182.04,181.93,18.24447475]
[1734881367184,20.0,182.04,181.94,18.24447475]
[1734881367388,5.847,182.07,181.95,18.24447475]
[1734881367559,5.847,182.07,181.96,18.24447475]
[1734881368190,0.12549,182.06,181.95,18.24447475]
[1734881368363,0.12549,182.06,181.91,23.776884]
[1734881368364,0.12549,182.06,181.94,18.24447475]
[1734881368566,0.12549,182.06,181.93,18.24447475]
[1734881368859,23.902374,182.06,181.93,18.24447475]
[1734881369081,0.12549,182.04,181.94,3.27495069]
[1734881369277,23.902374,182.04,181.94,3.27495069]
[1734881369588,23.902374,182.04,181.9,18.24447475]
[1734881369965,20.0,182.01,181.9,18.24447475]
[1734881370874,9.3731,182.03,181.94,18.24447475]
[1734881371594,8.2391,182.06,181.95,18.24447475]
[1734881371891,1.1323,182.11,181.96,18.24447475]
[1734881372496,0.12549,182.08,181.96,18.24447475]
[1734881372794,8.2377,182.09,181.98,18.24447475]
[1734881373195,1.1323,182.11,182.01,18.24447475]
[1734881373563,1.1323,182.11,181.99,18.24447475]
[1734881374198,1.1323,182.11,182.0,18.24447475]
[1734881375004,8.36269,182.1,181.94,31.428684]
[1734881375171,8.36269,182.1,181.96,18.24447475]
[1734881375371,0.12549,182.06,181.96,18.24447475]
[1734881375775,0.12549,182.06,181.95,18.24447475]
[1734881376473,0.12549,182.06,181.94,25.89627475]
[1734881376884,20.0,182.03,181.94,1.5442]
[1734881377081,20.0,182.03,181.94,19.78867475]
[1734881377311,20.0,182.03,181.95,18.24447475]
[1734881377519,20.0,182.03,181.94,1.5442]
[1734881377813,20.0,182.02,181.93,18.24447475]
[1734881379317,8.2394,182.05,181.94,18.24447475]
[1734881379517,20.0,182.05,181.97,18.24447475]
[1734881379688,8.2383,182.08,181.97,18.24447475]
[1734881380532,0.12549,182.07,181.97,18.24447475]
[1734881381103,8.2383,182.08,181.97,18.24447475]
[1734881381308,9.3693,182.11,181.99,18.24447475]
[1734881382389,8.2376,182.09,181.99,18.24447475]
[1734881382594,0.12549,182.08,181.97,18.24447475]
[1734881383906,0.12549,182.1,181.97,18.24447475]